[Event "56th Rubinstein Memorial C 2020"]
[Site "Polanica Zdroj"]
[Date "2020.08.19"]
[Round "5.13"]
[White "Wolak, Julia"]
[Black "Raclawicki, Kacper"]
[Result "0-1"]
[ECO "B40"]
[WhiteElo "1516"]
[BlackElo "1879"]
[Annotator "NA"]
[PlyCount "80"]
[EventDate "2020.08.15"]
[EventType "swiss"]
[EventCountry "POL"]
[SourceTitle "playchess.com"]
[Source "ChessBase"]
[SourceQuality "1"]
[TimeControl "40/5400+30:1800+30"]

1. e4 {[%emt 0:00:31]} c5 {[%emt 0:00:00]} 2. Nf3 {[%emt 0:00:09]} e6 {[%emt 0:00:21]} 3. d3 {[%emt 0:00:08]} Nc6 {[%emt 0:00:55]} 4. Nbd2 {[%emt 0:00:32]} g6 {[%emt 0:01:30]} 5. g3 {[%emt 0:00:07]} Bg7 {[%emt 0:00:26]} 6. Bg2 {[%emt 0:00:42]} Nge7 {[%emt 0:00:55]} 7. O-O {[%emt 0:00:25]} O-O {[%emt 0:02:40]} 8. Re1 {[%emt 0:01:25]} d6 {[%emt 0:01:02]} 9. c3 {[%emt 0:03:09]} Rb8 {[%emt 0:02:17]} 10. Nf1 {[%emt 0:05:25]} b5 {[%emt 0:02:58]} 11. Be3 {[%emt 0:05:16]} b4 {[%emt 0:07:16]} 12. Qd2 {[%emt 0:00:57]} Qa5 {[%emt 0:01:56]} 13. d4 {[%emt 0:01:22]} bxc3 {[%emt 0:10:41]} 14. bxc3 {[%emt 0:07:01]} Ba6 {[%emt 0:02:44]} 15. Rec1 $15 {[%emt 0:01:43]} Rfd8 {[%emt 0:06:22]} 16. Rc2 {[%emt 0:12:13]} Qa3 {[%emt 0:09:05]} 17. c4 {[%emt 0:06:42]} Na5 {[%emt 0:09:19]} 18. Rac1 {[%emt 0:02:24]} Nec6 {[%emt 0:03:17]} 19. Rc3 {[%emt 0:07:56]} Qa4 {[%emt 0:00:31]} 20. Qd3 {[%emt 0:00:25]} Nb4 {[%emt 0:15:32]} 21. Qd1 {[%emt 0:09:36]} Qxd1 {[%emt 0:01:33]} 22. Rxd1 {[%emt 0:00:06]} Nxc4 {[%emt 0:00:20]} 23. a3 {[%emt 0:05:23]} Nc6 {[%emt 0:01:10]} 24. Rcc1 {[%emt 0:02:38]} Nb2 {[%emt 0:08:10]} 25. Rd2 {[%emt 0:00:50]} c4 {[%emt 0:00:21]} 26. d5 {[%emt 0:00:57]} c3 {[%emt 0:03:09]} 27. Rdc2 {[%emt 0:00:43]} Ne5 {[%emt 0:01:41]} 28. Nd4 {[%emt 0:01:38]} Nbd3 {[%emt 0:01:38]} 29. Ra1 {[%emt 0:02:04]} Rdc8 {[%emt 0:01:54]} 30. dxe6 {[%emt 0:01:58]} fxe6 {[%emt 0:00:32]} 31. Nxe6 {[%emt 0:00:36]} Rb2 {[%emt 0:00:25]} 32. Nd4 {[%emt 0:01:12]} Ng4 {[%emt 0:01:51]} 33. Bc1 {[%emt 0:05:35]} Bxd4 {[%emt 0:00:43]} 34. Bxb2 {[%emt 0:01:08]} cxb2 {[%emt 0:00:13]} 35. Rxc8+ {[%emt 0:00:33]} Bxc8 {[%emt 0:00:01]} 36. Rb1 {[%emt 0:01:18]} Ngxf2 {[%emt 0:01:16]} 37. Bf3 {[%emt 0:02:29]} Nd1+ {[%emt 0:00:48]} 38. Kg2 {[%emt 0:00:35]} Nc3 {[%emt 0:00:58]} 39. Nd2 {[%emt 0:00:20]} Nxb1 {[%emt 0:00:08]} 40. Nxb1 {[%emt 0:00:00]} Ne1+ {[%emt 0:00:00]} 0-1

[Event "56th Rubinstein Memorial C 2020"]
[Site "Polanica Zdroj"]
[Date "2020.08.19"]
[Round "5.14"]
[White "Trusz, Julia"]
[Black "Mocny, Tomasz"]
[Result "1-0"]
[ECO "D11"]
[WhiteElo "1645"]
[BlackElo "1802"]
[Annotator "NA"]
[PlyCount "77"]
[EventDate "2020.08.15"]
[EventType "swiss"]
[EventCountry "POL"]
[SourceTitle "playchess.com"]
[Source "ChessBase"]
[SourceQuality "1"]
[TimeControl "40/5400+30:1800+30"]

1. d4 {[%emt 0:00:00]} d5 {[%emt 0:00:00]} 2. c4 {[%emt 0:00:05]} c6 {[%emt 0:00:03]} 3. Nf3 {[%emt 0:00:31]} Nf6 {[%emt 0:00:23]} 4. Qc2 {[%emt 0:00:34]} a6 {[%emt 0:01:10]} 5. g3 {[%emt 0:02:38]} b5 {[%emt 0:06:51]} 6. c5 {[%emt 0:02:17]} Bg4 {[%emt 0:04:48]} 7. Nbd2 {[%emt 0:02:40]} Nbd7 {[%emt 0:03:55]} 8. Bg2 {[%emt 0:02:14]} Qc7 {[%emt 0:03:12]} 9. O-O {[%emt 0:01:56]} e5 {[%emt 0:06:03]} 10. dxe5 {[%emt 0:02:53]} Nxe5 {[%emt 0:00:40]} 11. Nxe5 {[%emt 0:00:50]} Qxe5 {[%emt 0:00:20]} 12. Nf3 {[%emt 0:01:28]} Qe4 {[%emt 0:22:40]} 13. Qxe4+ {[%emt 0:10:38]} Nxe4 {[%emt 0:13:59]} 14. Ne5 {[%emt 0:02:08]} Bf5 {[%emt 0:06:17]} 15. Be3 {[%emt 0:07:50]} Rc8 {[%emt 0:01:51]} 16. Rac1 {[%emt 0:02:52]} f6 {[%emt 0:05:22]} 17. Nf3 {[%emt 0:02:23]} Bg4 {[%emt 0:05:59]} 18. Rfe1 {[%emt 0:05:53]} Kf7 {[%emt 0:01:23]} 19. Nd4 {[%emt 0:05:56]} Bd7 {[%emt 0:01:52]} 20. Nb3 {[%emt 0:03:16]} Ng5 {[%emt 0:02:35]} 21. Bxg5 {[%emt 0:06:18]} fxg5 {[%emt 0:00:06]} 22. e4 {[%emt 0:00:20]} dxe4 {[%emt 0:01:21]} 23. Bxe4 {[%emt 0:00:29]} Be7 {[%emt 0:01:57]} 24. Nd4 {[%emt 0:05:02]} g6 {[%emt 0:00:55]} 25. b4 {[%emt 0:04:19]} Bf6 {[%emt 0:02:01]} 26. Rcd1 {[%emt 0:00:15]} Rhd8 {[%emt 0:01:34]} 27. Ne2 {[%emt 0:04:21]} a5 {[%emt 0:03:04]} 28. bxa5 {[%emt 0:01:26]} Be8 {[%emt 0:01:43]} 29. Bc2 {[%emt 0:04:34]} Ra8 {[%emt 0:01:22]} 30. Rxd8 {[%emt 0:00:41]} Bxd8 {[%emt 0:00:39]} 31. Nd4 {[%emt 0:02:14]} Bxa5 {[%emt 0:00:17]} 32. Bb3+ {[%emt 0:00:38]} Kf8 {[%emt 0:00:44]} 33. Ne6+ {[%emt 0:02:41]} Ke7 {[%emt 0:00:09]} 34. Re3 {[%emt 0:00:36]} Kf6 {[%emt 0:00:48]} 35. Rf3+ {[%emt 0:01:02]} Ke7 {[%emt 0:00:23]} 36. Nxg5 {[%emt 0:00:52]} h6 {[%emt 0:00:29]} 37. Re3+ {[%emt 0:01:14]} Kf6 {[%emt 0:00:39]} 38. Nh7+ {[%emt 0:01:13]} Kf5 {[%emt 0:00:46]} 39. Be6# {[%emt 0:00:10]} 1-0

[Event "56th Rubinstein Memorial C 2020"]
[Site "Polanica Zdroj"]
[Date "2020.08.19"]
[Round "5.15"]
[White "Vanduyfhuys, Igor"]
[Black "Siekanska, Zuzanna"]
[Result "0-1"]
[ECO "B83"]
[WhiteElo "1776"]
[BlackElo "1680"]
[Annotator "NA"]
[PlyCount "56"]
[EventDate "2020.08.15"]
[EventType "swiss"]
[EventCountry "POL"]
[SourceTitle "playchess.com"]
[Source "ChessBase"]
[SourceQuality "1"]
[TimeControl "40/5400+30:1800+30"]

1. e4 {[%emt 0:00:00]} c5 {[%emt 0:00:00]} 2. Nf3 {[%emt 0:00:00]} e6 {[%emt 0:00:00]} 3. d4 {[%emt 0:00:02]} cxd4 {[%emt 0:00:00]} 4. Nxd4 {[%emt 0:00:22]} Nf6 {[%emt 0:00:00]} 5. Nc3 {[%emt 0:00:27]} d6 {[%emt 0:00:00]} 6. Be2 {[%emt 0:00:12]} Be7 {[%emt 0:00:00]} 7. O-O {[%emt 0:00:42]} Nc6 {[%emt 0:00:00]} 8. Be3 {[%emt 0:00:55]} O-O {[%emt 0:00:03]} 9. Kh1 {[%emt 0:00:13]} e5 {[%emt 0:00:09]} 10. Nb3 {[%emt 0:00:41]} Be6 {[%emt 0:00:45]} 11. f4 {[%emt 0:00:25]} exf4 {[%emt 0:00:22]} 12. Bxf4 {[%emt 0:00:32]} d5 {[%emt 0:02:43]} 13. exd5 {[%emt 0:03:08]} Nxd5 14. Nxd5 {[%emt 0:00:17]} Qxd5 {[%emt 0:03:20]} 15. Qe1 {[%emt 0:02:18]} Rad8 {[%emt 0:10:02]} 16. Bf3 {[%emt 0:01:47]} Qc4 {[%emt 0:04:03]} 17. Be4 {[%emt 0:03:48]} Rfe8 {[%emt 0:10:23]} 18. Nd2 {[%emt 0:00:35]} Qb4 {[%emt 0:02:17]} 19. c3 {[%emt 0:03:11]} Qxb2 {[%emt 0:10:28]} 20. Rb1 {[%emt 0:00:12]} Qxc3 {[%emt 0:00:13]} 21. Rxb7 {[%emt 0:00:09]} Bd5 {[%emt 0:08:35]} 22. Bxd5 {[%emt 0:06:18]} Rxd5 {[%emt 0:00:40]} 23. Rc7 {[%emt 0:00:56]} Rdd8 {[%emt 0:07:31]} 24. Qe4 {[%emt 0:02:22]} Rc8 {[%emt 0:02:08]} 25. Nb1 {[%emt 0:01:12]} Qf6 {[%emt 0:01:49]} 26. Rb7 {[%emt 0:02:36]} Bd6 {[%emt 0:03:26]} 27. Qc4 {[%emt 0:01:47]} Bxf4 {[%emt 0:01:23]} 28. Nd2 {[%emt 0:02:26]} Na5 {[%emt 0:01:45]} 0-1

[Event "56th Rubinstein Memorial C 2020"]
[Site "Polanica Zdroj"]
[Date "2020.08.19"]
[Round "5.16"]
[White "Ciechonski, Piotr"]
[Black "Kieca, Aleksandra"]
[Result "1/2-1/2"]
[ECO "B23"]
[WhiteElo "1774"]
[BlackElo "1594"]
[Annotator "NA RC"]
[PlyCount "238"]
[EventDate "2020.08.15"]
[EventType "swiss"]
[EventCountry "POL"]
[SourceTitle "playchess.com"]
[Source "ChessBase"]
[SourceQuality "1"]
[TimeControl "40/5400+30:1800+30"]

1. e4 c5 2. Nc3 e6 3. f4 d5 4. d3 Nc6 5. Nf3 dxe4 6. Nxe4 Be7 7. g3 Nf6 8. Bg2 O-O 9. O-O Qb6 10. Nf2 Nd5 11. a3 Bf6 12. c4 Nde7 13. Ne4 Bd4+ 14. Nxd4 Nxd4 15. b4 cxb4 16. axb4 Ndc6+ 17. Nf2 Nxb4 18. Qb3 Bd7 19. Ba3 a5 20. Kh1 Nec6 21. Rab1 Rfd8 22. Bb2 Nd4 23. Qc3 Bc6 24. h4 Bxg2+ 25. Kxg2 Nbc2 26. Kh3 Qb4 27. Rfc1 Qxc3 28. Bxc3 a4 29. Rb2 a3 30. Rbxc2 Nxc2 31. Rxc2 a2 32. Ba1 Rd6 33. Rb2 b6 34. Kg4 Kf8 35. Kf3 Ke8 36. Ke3 f6 37. Ne4 Rc6 38. Nc3 Rc7 39. Rxb6 Kd7 40. g4 Rc6 41. Rb3 Rc7 42. Kd2 Kc6 43. Kc2 g5 44. fxg5 fxg5 45. hxg5 Rf7 46. Ne2 Rf2 47. Kd2 Ra7 48. Rb2 Rf1 49. Nc1 Rg1 50. Kc2 Rxg4 51. Rb5 Rg2+ 52. Kc3 Rg1 53. Nb3 Rb1 54. Kc2 Rh1 55. Rc5+ Kd6 56. Be5+ Kd7 57. Rb5 Rf1 58. Rb6 Rf2+ 59. Kd1 Rf1+ 60. Ke2 Rb1 61. Nc5+ Ke7 62. Rxe6+ Kf7 63. Rf6+ Ke8 64. Re6+ Kf7 65. Rh6 Ke8 66. Ne4 Re7 67. Bd4 a1=Q 68. Bxa1 Rxa1 69. Rxh7 Rxh7 70. Nf6+ Kf7 71. Nxh7 Kg6 72. Nf6 Kxg5 73. Nd5 Kf5 74. Ke3 Ke5 75. d4+ Kd6 76. Ke4 Re1+ 77. Ne3 Rc1 78. Kd3 Kc6 79. Nc2 Rd1+ 80. Kc3 Rc1 81. Kb2 Rh1 82. Nb4+ Kb6 83. Kc3 Rc1+ 84. Nc2 Kc6 85. Kd2 Rh1 86. Nb4+ Kb6 87. Nd5+ Kc6 88. Ne7+ Kd6 89. Nf5+ Kc6 90. Kd3 Rd1+ 91. Ke4 Re1+ 92. Ne3 Rc1 93. Ng4 Re1+ 94. Kf5 Rf1+ 95. Ke6 Re1+ 96. Ne5+ Kc7 97. c5 Rc1 98. Kd5 Rh1 99. Nf7 Rh4 100. Nd6 Rh5+ 101. Kc4 Kc6 102. Nf7 Rh4 103. Nd8+ Kd7 104. Nb7 Rg4 105. Na5 Kc7 106. Nb3 Rh4 107. Nc1 Kc6 108. Nd3 Kc7 109. Kd5 Rh6 110. Ne5 Rh1 111. c6 Rc1 112. Ke6 Rh1 113. d5 Rh6+ 114. Ke7 Rd6 115. Kf7 Rxd5 116. Ke6 Rd1 117. Ke7 Re1 118. Ke6 Rxe5+ 119. Kxe5 Kxc6 1/2-1/2

[Event "56th Rubinstein Memorial C 2020"]
[Site "Polanica Zdroj"]
[Date "2020.08.20"]
[Round "6.1"]
[White "Podgorski, Maciej"]
[Black "Komendecki, Jacek"]
[Result "1-0"]
[ECO "B27"]
[WhiteElo "1810"]
[BlackElo "2024"]
[Annotator "NA"]
[PlyCount "37"]
[EventDate "2020.08.15"]
[EventType "swiss"]
[EventCountry "POL"]
[SourceTitle "playchess.com"]
[Source "ChessBase"]
[SourceQuality "1"]
[TimeControl "40/5400+30:1800+30"]

1. e4 {[%emt 0:00:00]} c5 {[%emt 0:00:00]} 2. Nf3 {[%emt 0:00:00]} g6 {[%emt 0:00:00]} 3. d4 {[%emt 0:00:00]} cxd4 {[%emt 0:00:00]} 4. Nxd4 {[%emt 0:00:00]} Nf6 {[%emt 0:00:00]} 5. Nc3 {[%emt 0:00:06]} Nc6 {[%emt 0:00:00]} 6. Nxc6 {[%emt 0:00:09]} bxc6 {[%emt 0:00:00]} 7. e5 {[%emt 0:00:07]} Nh5 8. Bc4 {[%emt 0:05:52]} Qa5 {[%emt 0:04:28]} 9. O-O {[%emt 0:04:08]} Qxe5 {[%emt 0:01:37]} 10. Re1 {[%emt 0:00:31]} Qc5 {[%emt 0:01:51]} 11. Ne4 {[%emt 0:00:37]} Qb6 {[%emt 0:03:48]} 12. Nd6+ {[%emt 0:00:32]} Kd8 {[%emt 0:00:01]} 13. Nxf7+ {[%emt 0:00:27]} Ke8 {[%emt 0:06:58]} 14. Nxh8 {[%emt 0:01:48]} d5 {[%emt 0:00:06]} 15. Bxd5 cxd5 {[%emt 0:00:43]} 16. Qxd5 {[%emt 0:08:02]} Bb7 {[%emt 0:00:08]} 17. Qf7+ {[%emt 0:00:07]} Kd7 {[%emt 0:00:01]} 18. Rd1+ {[%emt 0:00:59]} Kc7 {[%emt 0:00:40]} 19. Bf4+ 1-0

[Event "56th Rubinstein Memorial C 2020"]
[Site "Polanica Zdroj"]
[Date "2020.08.20"]
[Round "6.3"]
[White "Budnik, Mateusz"]
[Black "Komendecki, Antoni"]
[Result "1/2-1/2"]
[ECO "A04"]
[WhiteElo "2033"]
[BlackElo "1631"]
[Annotator "NA"]
[PlyCount "76"]
[EventDate "2020.08.15"]
[EventType "swiss"]
[EventCountry "POL"]
[SourceTitle "playchess.com"]
[Source "ChessBase"]
[SourceQuality "1"]
[TimeControl "40/5400+30:1800+30"]

1. Nf3 {[%emt 0:00:00]} c5 {[%emt 0:00:03]} 2. b3 {[%emt 0:00:00]} g6 {[%emt 0:00:46]} 3. Bb2 {[%emt 0:00:05]} Nf6 {[%emt 0:00:06]} 4. e3 {[%emt 0:01:50]} Bg7 {[%emt 0:00:26]} 5. Be2 {[%emt 0:00:28]} O-O 6. O-O d5 {[%emt 0:01:09]} 7. d4 {[%emt 0:00:39]} cxd4 {[%emt 0:00:31]} 8. exd4 {[%emt 0:00:31]} Nc6 {[%emt 0:00:32]} 9. Ne5 {[%emt 0:01:21]} Nxe5 {[%emt 0:06:31]} 10. dxe5 {[%emt 0:01:29]} Nd7 {[%emt 0:01:01]} 11. f4 {[%emt 0:04:50]} e6 {[%emt 0:01:55]} 12. Na3 {[%emt 0:01:43]} f6 {[%emt 0:01:52]} 13. exf6 {[%emt 0:03:59]} Nxf6 {[%emt 0:00:17]} 14. Bf3 {[%emt 0:01:44]} Bd7 {[%emt 0:02:35]} 15. c4 {[%emt 0:01:46]} Bc6 {[%emt 0:02:31]} 16. Qe2 {[%emt 0:03:21]} Qb6+ {[%emt 0:05:21]} 17. Kh1 {[%emt 0:02:59]} Rae8 {[%emt 0:01:08]} 18. Rae1 {[%emt 0:06:44]} Ne4 {[%emt 0:06:43]} 19. Bxe4 {[%emt 0:04:01]} dxe4 {[%emt 0:00:45]} 20. Bxg7 {[%emt 0:04:08]} Kxg7 {[%emt 0:00:30]} 21. Nb1 {[%emt 0:05:48]} e5 {[%emt 0:08:27]} 22. fxe5 {[%emt 0:01:04]} Rxf1+ {[%emt 0:00:39]} 23. Rxf1 {[%emt 0:03:14]} Rxe5 {[%emt 0:00:23]} 24. Qb2 {[%emt 0:04:10]} Qc7 {[%emt 0:04:03]} 25. Nc3 {[%emt 0:07:29]} Kg8 {[%emt 0:02:24]} 26. Nd5 {[%emt 0:09:57]} Bxd5 {[%emt 0:01:40]} 27. cxd5 {[%emt 0:00:05]} Rxd5 {[%emt 0:06:48]} 28. Qf6 {[%emt 0:01:37]} Rf5 {[%emt 0:00:22]} 29. Rxf5 {[%emt 0:03:28]} gxf5 {[%emt 0:00:08]} 30. h3 {[%emt 0:00:58]} Qc1+ {[%emt 0:01:32]} 31. Kh2 {[%emt 0:00:02]} Qf4+ {[%emt 0:00:08]} 32. Kg1 {[%emt 0:00:39]} Qc1+ {[%emt 0:07:02]} 33. Kh2 {[%emt 0:00:08]} Qc7+ {[%emt 0:00:17]} 34. Kh1 {[%emt 0:01:16]} Qf7 {[%emt 0:00:18]} 35. Qg5+ {[%emt 0:00:36]} Qg6 {[%emt 0:01:26]} 36. Qd8+ {[%emt 0:00:11]} Kg7 {[%emt 0:00:50]} 37. Qe7+ {[%emt 0:00:17]} Qf7 {[%emt 0:00:45]} 38. Qg5+ {[%emt 0:00:06]} Qg6 {[%emt 0:00:21]} 1/2-1/2

[Event "56th Rubinstein Memorial C 2020"]
[Site "Polanica Zdroj"]
[Date "2020.08.20"]
[Round "6.5"]
[White "Bartlomowicz, Jakub"]
[Black "Witkowski, Krzysztof"]
[Result "1/2-1/2"]
[ECO "B33"]
[WhiteElo "1613"]
[BlackElo "1791"]
[Annotator "NA"]
[PlyCount "51"]
[EventDate "2020.08.15"]
[EventType "swiss"]
[EventCountry "POL"]
[SourceTitle "playchess.com"]
[Source "ChessBase"]
[SourceQuality "1"]
[TimeControl "40/5400+30:1800+30"]

1. e4 {[%emt 0:00:00]} c5 {[%emt 0:00:00]} 2. Nf3 {[%emt 0:00:00]} Nc6 {[%emt 0:00:00]} 3. d4 {[%emt 0:00:00]} cxd4 {[%emt 0:00:00]} 4. Nxd4 {[%emt 0:00:00]} Nf6 {[%emt 0:00:00]} 5. Nc3 {[%emt 0:00:26]} e5 {[%emt 0:00:00]} 6. Ndb5 {[%emt 0:00:29]} d6 {[%emt 0:00:04]} 7. Bg5 {[%emt 0:00:57]} a6 {[%emt 0:00:04]} 8. Na3 {[%emt 0:00:06]} b5 {[%emt 0:00:03]} 9. Nd5 {[%emt 0:00:10]} Be7 {[%emt 0:00:05]} 10. Bxf6 Bxf6 {[%emt 0:00:06]} 11. c4 {[%emt 0:01:04]} b4 {[%emt 0:00:21]} 12. Nc2 O-O {[%emt 0:00:12]} 13. Be2 {[%emt 0:03:00]} a5 {[%emt 0:01:26]} 14. O-O {[%emt 0:01:03]} Bg5 {[%emt 0:00:35]} 15. Qd3 {[%emt 0:02:35]} f5 {[%emt 0:16:42]} 16. Bf3 {[%emt 0:02:25]} Ra7 {[%emt 0:11:10]} 17. Rad1 {[%emt 0:04:04]} Ne7 {[%emt 0:09:46]} 18. Nxe7+ {[%emt 0:03:58]} Bxe7 {[%emt 0:00:48]} 19. Ne3 {[%emt 0:00:56]} f4 {[%emt 0:00:49]} 20. Nd5 {[%emt 0:01:30]} Bg5 {[%emt 0:00:07]} 21. b3 {[%emt 0:01:51]} Kh8 {[%emt 0:05:15]} 22. Qe2 {[%emt 0:01:57]} Bb7 {[%emt 0:07:28]} 23. Rd3 {[%emt 0:01:20]} Bxd5 {[%emt 0:00:08]} 24. Rxd5 {[%emt 0:00:09]} Qc7 {[%emt 0:05:15]} 25. Rfd1 {[%emt 0:01:54]} Be7 {[%emt 0:00:13]} 26. Bg4 {[%emt 0:01:01]} 1/2-1/2

[Event "56th Rubinstein Memorial C 2020"]
[Site "Polanica Zdroj"]
[Date "2020.08.20"]
[Round "6.6"]
[White "Janzer, Hubert"]
[Black "Iwanczuk, Krzysztof"]
[Result "1/2-1/2"]
[ECO "A45"]
[WhiteElo "1893"]
[BlackElo "1929"]
[Annotator "NA"]
[PlyCount "97"]
[EventDate "2020.08.15"]
[EventType "swiss"]
[EventCountry "POL"]
[SourceTitle "playchess.com"]
[Source "ChessBase"]
[SourceQuality "1"]
[TimeControl "40/5400+30:1800+30"]

1. d4 Nf6 2. Bf4 d5 3. e3 c5 4. c3 Nc6 5. Nd2 Bf5 6. Ngf3 Qb6 7. Qb3 c4 8. Qxb6 axb6 9. Be2 e6 10. O-O b5 11. Nh4 Be4 12. f3 Bd3 13. Bxd3 cxd3 14. g4 Be7 15. Ng2 b4 16. c4 O-O 17. g5 Nh5 18. cxd5 exd5 19. h4 Ra6 20. Nb3 Rfa8 21. Rab1 Rxa2 22. Rfd1 Rc8 23. Nc1 Raa8 24. Nxd3 Na5 25. e4 Nxf4 26. Ngxf4 dxe4 27. fxe4 b3 28. Nd5 Bd8 29. Nc5 b6 30. Nd7 Rc2 31. Ne3 f6 32. gxf6 gxf6 33. e5 fxe5 34. Rf1 Bxh4 35. Nxc2 bxc2 36. Rbc1 Rc8 37. Nxb6 Rc6 38. d5 Rxb6 39. Rxc2 Bg5 40. Kg2 Rd6 41. Rc5 Nb3 42. Rc8+ Bd8 43. Rd1 Nd4 44. Re1 Rxd5 45. Rxe5 Rxe5 46. Rxd8+ Kg7 47. Rxd4 Re2+ 48. Kg3 Rxb2 49. Rd6 1/2-1/2

[Event "56th Rubinstein Memorial C 2020"]
[Site "Polanica Zdroj"]
[Date "2020.08.20"]
[Round "6.7"]
[White "Siekanska, Zuzanna"]
[Black "Kawalko, Adam"]
[Result "*"]
[ECO "A61"]
[WhiteElo "1680"]
[BlackElo "1950"]
[Annotator "ChessBase"]
[PlyCount "26"]
[EventDate "2020.08.15"]
[EventType "swiss"]
[EventCountry "POL"]
[SourceTitle "playchess.com"]
[Source "ChessBase"]
[SourceQuality "1"]
[TimeControl "40/5400+30:1800+30"]

1. d4 {[%emt 0:00:00]} Nf6 {[%emt 0:00:00]} 2. c4 {[%emt 0:00:00]} e6 {[%emt 0:00:00]} 3. Nf3 {[%emt 0:00:00]} c5 {[%emt 0:00:00]} 4. d5 {[%emt 0:00:00]} exd5 {[%emt 0:00:38]} 5. cxd5 {[%emt 0:00:01]} d6 {[%emt 0:00:09]} 6. Nc3 {[%emt 0:00:05]} g6 {[%emt 0:01:05]} 7. e4 {[%emt 0:00:08]} Bg7 {[%emt 0:00:47]} 8. h3 {[%emt 0:00:13]} O-O {[%emt 0:01:02]} 9. Bd3 {[%emt 0:00:21]} a6 {[%emt 0:02:07]} 10. a4 {[%emt 0:00:07]} Qc7 {[%emt 0:01:10]} 11. O-O {[%emt 0:00:34]} Nbd7 {[%emt 0:02:26]} 12. Bf4 {[%emt 0:01:06]} Re8 {[%emt 0:05:00]} 13. Nd2 {[%emt 0:05:37]} Ne5 {[%emt 0:03:59]} *

[Event "56th Rubinstein Memorial C 2020"]
[Site "Polanica Zdroj"]
[Date "2020.08.20"]
[Round "6.8"]
[White "Barwinska, Ewa"]
[Black "Lewandrowski, Tomasz"]
[Result "*"]
[ECO "C65"]
[WhiteElo "1763"]
[BlackElo "1879"]
[Annotator "NA"]
[PlyCount "23"]
[EventDate "2020.08.15"]
[EventType "swiss"]
[EventCountry "POL"]
[SourceTitle "playchess.com"]
[Source "ChessBase"]
[SourceQuality "1"]
[TimeControl "40/5400+30:1800+30"]

1. e4 {[%emt 0:00:00]} e5 {[%emt 0:00:00]} 2. Nf3 {[%emt 0:00:00]} Nc6 {[%emt 0:00:00]} 3. Bb5 {[%emt 0:00:00]} Nf6 {[%emt 0:00:00]} 4. d3 {[%emt 0:00:04]} Bc5 {[%emt 0:00:30]} 5. Bxc6 {[%emt 0:00:43]} dxc6 {[%emt 0:00:16]} 6. Nbd2 {[%emt 0:00:13]} Bg4 {[%emt 0:09:34]} 7. h3 {[%emt 0:00:27]} Bxf3 {[%emt 0:00:27]} 8. Nxf3 {[%emt 0:00:13]} h6 {[%emt 0:01:36]} 9. Qe2 {[%emt 0:01:10]} Qe7 {[%emt 0:00:35]} 10. Bd2 {[%emt 0:02:13]} O-O-O {[%emt 0:03:08]} 11. O-O-O {[%emt 0:00:30]} Rhe8 {[%emt 0:02:56]} 12. Be3 {[%emt 0:02:04]} *

[Event "56th Rubinstein Memorial C 2020"]
[Site "Polanica Zdroj"]
[Date "2020.08.20"]
[Round "6.9"]
[White "Raclawicki, Kacper"]
[Black "Raczek, Krzysztof"]
[Result "1/2-1/2"]
[ECO "A45"]
[WhiteElo "1879"]
[BlackElo "1712"]
[Annotator "NA"]
[PlyCount "46"]
[EventDate "2020.08.15"]
[EventType "swiss"]
[EventCountry "POL"]
[SourceTitle "playchess.com"]
[Source "ChessBase"]
[SourceQuality "1"]
[TimeControl "40/5400+30:1800+30"]

1. d4 {[%emt 0:08:26]} Nf6 {[%emt 0:00:00]} 2. Bf4 {[%emt 0:00:23]} g6 {[%emt 0:00:01]} 3. Nc3 {[%emt 0:00:35]} d5 {[%emt 0:00:12]} 4. e3 {[%emt 0:00:37]} Bg7 {[%emt 0:01:49]} 5. h4 {[%emt 0:00:29]} c6 {[%emt 0:00:27]} 6. Nf3 {[%emt 0:00:50]} Bg4 {[%emt 0:00:30]} 7. Be2 {[%emt 0:00:39]} h5 {[%emt 0:01:50]} 8. Ne5 {[%emt 0:00:46]} Bxe2 {[%emt 0:00:12]} 9. Qxe2 {[%emt 0:00:04]} Nfd7 {[%emt 0:00:19]} 10. O-O-O {[%emt 0:07:50]} Nxe5 {[%emt 0:19:55]} 11. Bxe5 {[%emt 0:00:26]} Bxe5 {[%emt 0:06:27]} 12. dxe5 {[%emt 0:00:04]} Qa5 {[%emt 0:00:35]} 13. e4 {[%emt 0:06:07]} dxe4 {[%emt 0:10:22]} 14. Qxe4 {[%emt 0:02:52]} e6 {[%emt 0:00:11]} 15. Qf4 {[%emt 0:10:33]} Nd7 {[%emt 0:27:24]} 16. Rxd7 {[%emt 0:19:19]} Kxd7 {[%emt 0:00:03]} 17. Qxf7+ {[%emt 0:00:52]} Kc8 {[%emt 0:00:08]} 18. Qxe6+ {[%emt 0:02:27]} Kc7 {[%emt 0:01:44]} 19. Qd6+ {[%emt 0:13:25]} Kb6 {[%emt 0:00:17]} 20. Rd1 {[%emt 0:00:32]} Rad8 {[%emt 0:01:09]} 21. Nd5+ Ka6 {[%emt 0:00:43]} 22. Nc7+ {[%emt 0:11:20]} Kb6 {[%emt 0:00:58]} 23. Nd5+ {[%emt 0:04:38]} Ka6 {[%emt 0:00:23]} 1/2-1/2

[Event "56th Rubinstein Memorial C 2020"]
[Site "Polanica Zdroj"]
[Date "2020.08.20"]
[Round "6.10"]
[White "Rudecki, Bartosz"]
[Black "Trusz, Julia"]
[Result "1-0"]
[ECO "B46"]
[WhiteElo "1831"]
[BlackElo "1645"]
[Annotator "NA"]
[PlyCount "53"]
[EventDate "2020.08.15"]
[EventType "swiss"]
[EventCountry "POL"]
[SourceTitle "playchess.com"]
[Source "ChessBase"]
[SourceQuality "1"]
[TimeControl "40/5400+30:1800+30"]

1. e4 {[%emt 0:00:00]} c5 {[%emt 0:00:00]} 2. Nf3 {[%emt 0:00:00]} e6 {[%emt 0:00:00]} 3. d4 {[%emt 0:00:00]} cxd4 {[%emt 0:00:10]} 4. Nxd4 {[%emt 0:00:00]} Nc6 {[%emt 0:00:21]} 5. Nc3 {[%emt 0:00:00]} a6 {[%emt 0:00:25]} 6. g3 {[%emt 0:00:21]} Nf6 {[%emt 0:01:25]} 7. Bg2 {[%emt 0:01:29]} Be7 {[%emt 0:00:59]} 8. O-O {[%emt 0:00:10]} O-O {[%emt 0:00:11]} 9. a4 {[%emt 0:00:56]} Qc7 {[%emt 0:02:07]} 10. Be3 {[%emt 0:06:23]} Rd8 {[%emt 0:02:17]} 11. Nb3 {[%emt 0:00:39]} Na5 {[%emt 0:01:24]} 12. e5 {[%emt 0:05:24]} Ne8 {[%emt 0:00:31]} 13. Nxa5 {[%emt 0:05:04]} Qxa5 {[%emt 0:00:10]} 14. Qe2 {[%emt 0:11:28]} d5 {[%emt 0:04:42]} 15. exd6 {[%emt 0:01:45]} Nxd6 {[%emt 0:00:35]} 16. Bd2 {[%emt 0:04:56]} Qc7 {[%emt 0:02:45]} 17. Bf4 {[%emt 0:01:30]} Bd7 {[%emt 0:08:54]} 18. Nd5 {[%emt 0:00:50]} exd5 {[%emt 0:10:18]} 19. Qxe7 {[%emt 0:00:08]} Nf5 {[%emt 0:07:21]} 20. Bxc7 {[%emt 0:00:54]} Nxe7 {[%emt 0:00:05]} 21. Bxd8 {[%emt 0:00:10]} Rxd8 {[%emt 0:00:04]} 22. c4 {[%emt 0:00:58]} Bg4 {[%emt 0:05:17]} 23. cxd5 {[%emt 0:00:44]} Nxd5 {[%emt 0:00:43]} 24. Rad1 {[%emt 0:00:37]} Be6 {[%emt 0:01:23]} 25. Rxd5 {[%emt 0:00:06]} Rxd5 {[%emt 0:00:18]} 26. Bxd5 {[%emt 0:00:05]} Bxd5 {[%emt 0:00:06]} 27. Rd1 {[%emt 0:00:03]} 1-0